[Event "44th Chess Olympiad Open 2022"]
[Site "Chennai"]
[Date "2022.07.29"]
[Round "1.19"]
[White "Kiriella, K G T S D.."]
[Black "Erdos, Viktor"]
[Result "0-1"]
[WhiteElo "1781"]
[BlackElo "2586"]
[Annotator "ChessBase"]
[PlyCount "58"]
[EventDate "2022.??.??"]
[TimeControl "60"]

1. e4 {[%emt 0:00:03]} c5 {[%emt 0:00:06]} 2. Nf3 {[%emt 0:00:06]} e6 {[%emt 0:
00:00]} 3. d4 {[%emt 0:00:06]} cxd4 {[%emt 0:00:07]} 4. Nxd4 {[%emt 0:00:05]}
Nc6 {[%emt 0:00:06]} 5. Nxc6 {[%emt 0:06:09]} bxc6 {[%emt 0:00:40]} 6. c4 {
[%emt 0:01:32]} Nf6 {[%emt 0:03:04]} 7. Bd3 {[%emt 0:00:23]} e5 {[%emt 0:01:15]
} 8. Nc3 {[%emt 0:00:56]} Bc5 {[%emt 0:00:54]} 9. Be3 {[%emt 0:06:18]} Bxe3 {
[%emt 0:03:00]} 10. fxe3 {[%emt 0:00:05]} d6 {[%emt 0:12:24]} 11. h3 {[%emt 0:
00:00]} Be6 {[%emt 0:02:51]} 12. Qe2 {[%emt 0:00:16]} Rb8 {[%emt 0:08:06]} 13.
O-O-O {[%emt 0:02:20]} Qa5 {[%emt 0:04:25]} 14. Bc2 {[%emt 0:07:54]} O-O {
[%emt 0:15:49]} 15. Ba4 {[%emt 0:18:34]} Qc5 {[%emt 0:28:40]} 16. Bb3 {[%emt 0:
00:00]} Rb4 {[%emt 0:00:16]} 17. Na4 {[%emt 0:13:42]} Qa5 {[%emt 0:00:21]} 18.
Nc3 {[%emt 0:00:20]} Rd8 {[%emt 0:02:23]} 19. Rhf1 {[%emt 0:03:37]} Qc5 {
[%emt 0:01:59]} 20. Rxf6 {[%emt 0:08:22]} gxf6 {[%emt 0:00:12]} 21. Qf3 {
[%emt 0:00:26]} h6 {[%emt 0:07:00]} 22. Kb1 {[%emt 0:10:29]} Kh7 {[%emt 0:00:
00]} 23. Na4 {[%emt 0:05:02]} Qa5 {[%emt 0:01:23]} 24. Qxf6 {[%emt 0:01:11]}
Rg8 {[%emt 0:00:09]} 25. Nc3 {[%emt 0:03:52]} Rxg2 {[%emt 0:00:15]} 26. c5 {
[%emt 0:01:18]} Rxb3 {[%emt 0:00:53]} 27. axb3 {[%emt 0:00:32]} Bxb3 {[%emt 0:
00:00]} 28. Rc1 {[%emt 0:01:06]} Qb4 {[%emt 0:01:35]} 29. cxd6 {[%emt 0:01:00]}
Ba2+ {[%emt 0:00:11]} 0-1

[Event "44th Chess Olympiad Open 2022"]
[Site "Chennai"]
[Date "2022.07.29"]
[Round "1.20"]
[White "Lupulescu, Constantin"]
[Black "Rongwane, Gomolemo"]
[Result "1-0"]
[WhiteElo "2628"]
[BlackElo "2033"]
[Annotator "TA"]
[PlyCount "114"]
[EventDate "2022.??.??"]
[TimeControl "60"]

{[%evp 14,114,66,54,63,59,63,52,71,33,63,62,93,85,85,85,85,85,87,84,88,98,95,
89,86,66,141,139,141,129,177,175,187,180,174,187,214,225,227,130,141,136,131,
136,130,121,190,182,149,135,216,209,295,291,260,205,206,203,265,245,431,333,
1232,1102,998,589,489,362,360,241,254,243,229,220,229,220,223,215,304,307,297,
316,399,400,498,514,490,411,582,590,606,607,622,595,29978,29981,29981,29982,
29982,29983,29981,29979,6291]} 1. c4 {[%emt 0:00:03]} e5 {[%emt 0:00:19]} 2.
Nc3 {[%emt 0:00:16]} d6 {[%emt 0:00:33]} 3. Nf3 {[%emt 0:01:51]} Nd7 {[%emt 0:
00:00]} 4. d4 {[%emt 0:00:24]} Ngf6 {[%emt 0:00:43]} 5. e4 {[%emt 0:00:39]} Be7
{[%emt 0:02:03]} 6. Be2 {[%emt 0:02:14]} O-O {[%emt 0:00:30]} 7. O-O {[%emt 0:
00:00]} c6 {[%emt 0:00:44]} 8. Qc2 {[%emt 0:05:08]} a5 {[%emt 0:03:48] A55:
Old Indian Defence with Nf3 and e4.} 9. Be3 {[%emt 0:11:00]} Qc7 {[%emt 0:00:
00] [#]} 10. Rac1 $146 {[%emt 0:04:56]} ({Predecessor:} 10. h3 Re8 11. Rfe1 Bf8
12. Bf1 h6 13. Rad1 b6 14. d5 Bb7 15. Rc1 Rac8 16. Qb1 Qb8 17. a3 Qa8 18. Nd2
Be7 19. Be2 Bd8 20. Bd1 Nf8 21. b4 N6d7 {½-½ (21) Filip,L (2385)-Manolache,M
(2472) Targu Mures 2022}) 10... Re8 {[%emt 0:01:56] White is slightly better.}
11. Nd2 {[%emt 0:04:39]} Nf8 {[%emt 0:09:27]} 12. d5 {[%emt 0:06:56]} c5 {
[%emt 0:11:31]} 13. f3 {[%emt 0:04:12]} Ng6 {[%emt 0:00:29]} 14. g3 {[%emt 0:
00:00]} Bh3 {[%emt 0:02:00]} 15. Rf2 {[%emt 0:00:00]} h5 {[%emt 0:07:44]} 16.
Bf1 {[%emt 0:03:25]} Qd7 {[%emt 0:11:32]} 17. Bxh3 {[%emt 0:09:00]} Qxh3 {
[%emt 0:00:00]} 18. Nf1 {[%emt 0:06:29]} Nh7 {[%emt 0:11:16]} 19. Bd2 {[%emt 0:
00:00]} Ngf8 {[%emt 0:00:00]} ({Black should try} 19... h4 $14) 20. Nb5 {
[%emt 0:00:00]} Qd7 {[%emt 0:04:38] Prevents Nc7.} 21. Ne3 {[%emt 0:00:14]} g6
{[%emt 0:00:59]} (21... Ng6 $16 22. h4 Red8) 22. h4 $18 {[%emt 0:00:59]} Qd8 {
[%emt 0:04:49]} 23. Kf1 {[%emt 0:02:54]} Nd7 {[%emt 0:00:54]} 24. Ke2 {[%emt 0:
00:00]} Nb8 {[%emt 0:03:01]} 25. Rg1 {[%emt 0:00:39]} Na6 {[%emt 0:02:48]} 26.
Rh2 {[%emt 0:01:02]} (26. g4 $18 {And now gxh5 would win.} Nf6 27. g5) 26...
Nc7 {[%emt 0:04:14]} 27. Nxc7 {[%emt 0:12:02] White is much more active.} Qxc7
{[%emt 0:00:14]} 28. g4 {[%emt 0:00:08] [#] Hoping for gxh5.} Nf6 {[%emt 0:00:
00]} 29. Nd1 {[%emt 0:04:15]} hxg4 {[%emt 0:00:00]} (29... b5 $16) 30. fxg4 {
[%emt 0:00:05]} Qd7 {[%emt 0:00:09]} 31. Ne3 {[%emt 0:01:43]} b5 {[%emt 0:00:
00]} (31... Kg7 $16) 32. h5 {[%emt 0:00:53]} bxc4 {[%emt 0:00:00]} (32... g5
$142 33. Nf5 Nh7) 33. hxg6 {[%emt 0:01:17]} (33. Qxc4 Reb8 $16) 33... fxg6 {
[%emt 0:00:00]} 34. Nxc4 {[%emt 0:01:08]} Bf8 {[%emt 0:00:00] [#]} 35. Kd1 $1 {
[%emt 0:00:49][%cal Ye2d1,Yd1c1,Yc1b1]} (35. Bxa5 $6 Re7 $16) 35... Reb8 {
[%emt 0:00:00]} 36. Kc1 {[%emt 0:01:06]} (36. Bxa5 Rb5 $11) 36... Ne8 $2 {
[%emt 0:00:00]} (36... Bg7 37. Bg5 (37. Bxa5 Rb5 $11) 37... Ra6 38. Bxf6 Bxf6)
37. Qd3 {[%emt 0:00:55]} Qb5 $2 {[%emt 0:00:00]} (37... Nf6 38. Qh3 (38. Bxa5
Rb7 $16) 38... Qh7) 38. Kb1 {[%emt 0:00:35][%cal Yd3h3] Black must now prevent
Qh3!} Bg7 {[%emt 0:04:04]} 39. Bh6 {[%emt 0:00:51]} Nf6 {[%emt 0:01:46]} 40.
Bg5 {[%emt 0:00:54] aiming for Bxf6.} Rf8 {[%emt 0:00:52]} 41. Qc2 {[%emt 0:00:
00]} Qa6 {[%emt 0:00:57]} 42. a4 {[%emt 0:03:44]} Rf7 {[%emt 0:08:19]} 43. Bd2
{[%emt 0:00:34]} Raf8 {[%emt 0:10:21]} 44. Nxa5 {[%emt 0:03:06]} ({Weaker is} 
44. Bxa5 Nxe4 45. Qxe4 Rf1+ 46. Rxf1 Rxf1+ 47. Be1 Rf4 $14) 44... Ra8 {[%emt 0:
00:00]} 45. b3 {[%emt 0:09:47]} Qb6 {[%emt 0:01:45]} (45... Ne8 {was necessary.
} 46. Ka2 Rf3) 46. Nc4 {[%emt 0:01:07]} Qb8 {[%emt 0:00:15]} 47. Ka2 {[%emt 0:
00:00]} Nd7 {[%emt 0:04:11]} 48. Bh6 {[%emt 0:03:22]} Rf3 {[%emt 0:00:00]} 49.
Bxg7 {[%emt 0:00:57]} Kxg7 {[%emt 0:00:02]} 50. Rf2 {[%emt 0:00:24]} Rf8 {
[%emt 0:07:14]} (50... Qf8 $142 51. Rxf3 Qxf3 52. Nxd6 Rf8) 51. Rgf1 {[%emt 0:
00:00]} Qc7 {[%emt 0:00:24]} 52. Rxf8 {[%emt 0:01:08]} Nxf8 {[%emt 0:01:44]}
53. Qh2 {[%emt 0:01:02] Rh1 would kill now.} Qd7 {[%emt 0:02:23]} 54. Rh1 {
[%emt 0:00:32] White mates.} Qe7 {[%emt 0:03:01]} 55. Qh8+ {[%emt 0:00:15]} Kf7
{[%emt 0:00:21]} 56. Rf1+ {[%emt 0:00:08]} Ke8 {[%emt 0:00:17]} 57. Qg8 {
[%emt 0:00:51]} Rb8 {[%emt 0:03:26] Weighted Error Value: White=0.19 (very
precise) /Black=0.44} 1-0

[Event "44th Chess Olympiad Open 2022"]
[Site "Chennai"]
[Date "2022.07.29"]
[Round "1.20"]
[White "Gavrilescu, David"]
[Black "Monnaatsheko, Keletshabile"]
[Result "1-0"]
[WhiteElo "2525"]
[BlackElo "2014"]
[Annotator "TA"]
[PlyCount "114"]
[EventDate "2022.??.??"]
[TimeControl "60"]

{[%evp 9,114,23,52,56,49,45,105,100,103,80,111,83,83,83,81,82,90,62,145,130,
144,138,179,166,217,183,216,222,212,209,199,204,187,141,295,300,269,296,463,
441,414,427,392,352,525,438,391,353,428,439,386,348,722,262,743,757,691,676,
652,479,422,469,462,462,442,445,491,495,487,496,490,490,435,435,422,403,506,
358,489,355,489,469,29975,29974,6222,1126,29969,29971,29970,29971,29971,29970,
29970,29973,29979,29981,29982,29983,29985,29986,29986,29987,29986,29983,29983,
29983,29964]} 1. e4 {[%emt 0:00:09]} e6 {[%emt 0:00:12]} 2. d4 {[%emt 0:00:11]}
d5 {[%emt 0:00:02]} 3. e5 {[%emt 0:00:10]} Bd7 {[%emt 0:00:10]} 4. Nf3 {
[%emt 0:01:26]} a6 {[%emt 0:00:09]} 5. c3 {[%emt 0:03:55]} Ne7 {[%emt 0:01:16]
[%cal Yc7c5]} 6. Bd3 {[%emt 0:00:28] C02: French: Advance Variation.} Bb5 {
[%emt 0:00:02]} 7. Bc2 {[%emt 0:01:19] [#]} Nf5 $146 {[%emt 0:01:02]} (7... a5
$14) ({Predecessor:} 7... a5 8. a4 Ba6 9. Na3 h6 10. b4 axb4 11. cxb4 Bc4 12.
Bd2 c6 13. Qb1 b5 {½-½ (34) Szerszen,K (1960)-Van Dam,J (2070) ICCF email
2019}) 8. a4 $16 {[%emt 0:01:22] White is better.} Bd7 {[%emt 0:00:14]} 9. O-O
{[%emt 0:00:44]} Be7 {[%emt 0:01:26]} 10. g4 {[%emt 0:01:26]} Nh4 {[%emt 0:00:
00]} 11. Nxh4 {[%emt 0:00:10]} Bxh4 {[%emt 0:00:10]} 12. f4 {[%emt 0:00:05]
[%cal Yf2f4,Yf4f5,Yf5f6]} Be7 {[%emt 0:01:13]} 13. b4 {[%emt 0:03:19][%cal
Yb2b4,Yb4b5] Against c5} a5 {[%emt 0:06:40]} ({Black should play} 13... Bf8 $14
) 14. b5 {[%emt 0:00:11]} c6 {[%emt 0:00:07]} 15. Bd3 {[%emt 0:00:00] White is
more active.} Bc8 {[%emt 0:06:11]} 16. f5 {[%emt 0:01:56]} Nd7 {[%emt 0:02:18]}
(16... c5 $142 17. Qf3 h6) 17. Qf3 {[%emt 0:05:33] Strongly threatening fxe6.}
Nb6 {[%emt 0:02:26] [#]} 18. f6 $1 {[%emt 0:05:24]} gxf6 {[%emt 0:02:01]} 19.
exf6 {[%emt 0:00:06]} Bd6 {[%emt 0:01:16]} 20. Bh6 {[%emt 0:00:45]} Kd7 {
[%emt 0:04:09]} 21. Nd2 {[%emt 0:00:31]} (21. Qh3 $18) 21... c5 $2 {[%emt 0:08:
46] Loses the game.} (21... Kc7 $16 {was necessary.}) 22. dxc5 {[%emt 0:01:04]}
Bxc5+ {[%emt 0:00:03]} 23. Kh1 {[%emt 0:00:59]} e5 {[%emt 0:06:38]} (23... Kc7
{might work better.} 24. c4 e5 25. cxd5 Kb8) 24. Qf5+ $18 {[%emt 0:00:04]} Kc7
{[%emt 0:18:22]} 25. Qxe5+ {[%emt 0:00:49]} Bd6 {[%emt 0:02:48]} 26. Qd4 {
[%emt 0:00:06]} Be6 {[%emt 0:04:02]} (26... Kb8 $142 27. Rae1 Ka7) 27. Nf3 {
[%emt 0:06:51]} Nd7 {[%emt 0:12:49]} 28. Bf4 {[%emt 0:00:00]} Bxf4 {[%emt 0:06:
11]} 29. Qxf4+ {[%emt 0:00:06]} Kb6 {[%emt 0:00:04]} 30. Bf5 {[%emt 0:05:40]} (
30. Nd4 Nc5 $18) 30... Qxf6 {[%emt 0:10:01]} (30... Bxf5 31. Qxf5 Nc5) 31. Qd6+
{[%emt 0:03:40]} Ka7 {[%emt 0:00:02]} 32. b6+ {[%emt 0:01:20]} Nxb6 {[%emt 0:
00:10]} 33. Nd4 {[%emt 0:02:25][%cal Yf3d4,Yd4b5,Yb5c7] [#] Intending Rfb1 and
mate.} Qd8 {[%emt 0:00:27]} 34. Nb5+ {[%emt 0:00:11]} Ka6 {[%emt 0:00:08]} 35.
Nc7+ {[%emt 0:00:09]} Ka7 {[%emt 0:00:00]} 36. Qc5 {[%emt 0:00:19]} Kb8 {
[%emt 0:03:37]} 37. Nxa8 {[%emt 0:01:16]} ({Not} 37. Qxb6 Qxc7 38. Rab1 Qxb6
39. Rxb6 Kc7 $15) ({Less strong is} 37. Nxe6 fxe6 38. Bxe6 Re8 $16) 37... Nxa8
{[%emt 0:00:02]} 38. Bxe6 {[%emt 0:00:22]} fxe6 {[%emt 0:00:04]} 39. Rf7 {
[%emt 0:00:14] Prevents Qc7. Hoping for Raf1.} Qb6 {[%emt 0:01:11]} 40. Qxb6 {
[%emt 0:00:28]} Nxb6 {[%emt 0:00:02] Endgame KRR-KRN} 41. Rb1 {[%emt 0:30:10]}
Ka7 {[%emt 0:31:58]} 42. Re7 {[%emt 0:00:36]} Rc8 {[%emt 0:00:38]} 43. Rb5 {
[%emt 0:00:12]} Rxc3 {[%emt 0:00:00]} 44. Rxa5+ {[%emt 0:00:12]} Kb8 {[%emt 0:
00:05]} 45. Rb5 {[%emt 0:00:06]} Nxa4 {[%emt 0:00:48]} (45... Rc7 $18 46. Rxe6
Nc8 47. Rxd5 Ne7) 46. Rbxb7+ {[%emt 0:00:04]} Kc8 {[%emt 0:00:04]} 47. Rxh7 {
[%emt 0:00:09]} (47. Ra7 $142 Kb8 48. Reb7+ Kc8 49. Rxh7) 47... d4 {[%emt 0:00:
58]} 48. Rbe7 {[%emt 0:00:04][%cal Rh7h8] White mates.} Kb8 {[%emt 0:00:36]}
49. Rh8+ {[%emt 0:00:32]} Rc8 {[%emt 0:00:02]} 50. Rxc8+ {[%emt 0:00:06]} Kxc8
{[%emt 0:00:11]} 51. Rxe6 {[%emt 0:00:03] KR-KN} d3 {[%emt 0:00:15]} 52. Rd6 {
[%emt 0:00:12]} Nb2 {[%emt 0:00:30]} 53. g5 {[%emt 0:00:04][%cal Yg4g5,Yg5g6,
Yg6g7]} Kc7 {[%emt 0:00:09]} 54. Rd4 {[%emt 0:00:02]} Kc6 {[%emt 0:00:25]} 55.
g6 {[%emt 0:00:00]} Kc5 {[%emt 0:00:11]} 56. Rxd3 {[%emt 0:00:06]} Nxd3 {
[%emt 0:00:36]} 57. g7 {[%emt 0:00:03]} Kd5 {[%emt 0:00:32] Weighted Error
Value: White=0.12 (very precise) /Black=0.63} 1-0

[Event "44th Chess Olympiad Open 2022"]
[Site "Chennai"]
[Date "2022.07.29"]
[Round "1.20"]
[White "Oratile, Kgotlane"]
[Black "Parligras, Mircea-Emilian"]
[Result "0-1"]
[WhiteElo "2024"]
[BlackElo "2576"]
[Annotator "ChessBase"]
[PlyCount "104"]
[EventDate "2022.??.??"]
[TimeControl "60"]

1. e4 {[%emt 0:00:05]} c5 {[%emt 0:00:10]} 2. Nf3 {[%emt 0:00:06]} d6 {[%emt 0:
00:00]} 3. d3 {[%emt 0:00:10]} Nc6 {[%emt 0:00:26]} 4. g3 {[%emt 0:00:11]} g6 {
[%emt 0:00:14]} 5. Bg2 {[%emt 0:00:05]} Bg7 {[%emt 0:00:08]} 6. O-O {[%emt 0:
00:00]} e5 {[%emt 0:00:10]} 7. Nc3 {[%emt 0:00:07]} Nge7 {[%emt 0:00:25]} 8.
Nd2 {[%emt 0:00:06]} O-O {[%emt 0:02:30]} 9. Nc4 {[%emt 0:00:06]} Be6 {[%emt 0:
00:00]} 10. Nd5 {[%emt 0:00:09]} b5 {[%emt 0:02:48]} 11. Nce3 {[%emt 0:00:13]}
Rb8 {[%emt 0:04:35]} 12. a4 {[%emt 0:02:07]} b4 {[%emt 0:00:52]} 13. Nc4 {
[%emt 0:00:35]} Qd7 {[%emt 0:07:52]} 14. a5 {[%emt 0:09:54]} f5 {[%emt 0:11:18]
} 15. c3 {[%emt 0:00:33]} bxc3 {[%emt 0:11:17]} 16. bxc3 {[%emt 0:00:14]} f4 {
[%emt 0:00:45]} 17. Bd2 {[%emt 0:09:51]} g5 {[%emt 0:05:48]} 18. Qa4 {[%emt 0:
00:00]} f3 {[%emt 0:06:59]} 19. Nxe7+ {[%emt 0:01:18]} Nxe7 {[%emt 0:00:13]}
20. Qxd7 {[%emt 0:00:32]} Bxd7 {[%emt 0:00:05]} 21. Bh1 {[%emt 0:00:44]} g4 {
[%emt 0:01:14]} 22. Nxd6 {[%emt 0:00:39]} Be6 {[%emt 0:06:42]} 23. Be3 {
[%emt 0:03:51]} Rfd8 {[%emt 0:02:53]} 24. Bxc5 {[%emt 0:13:51]} Nc6 {[%emt 0:
00:00]} 25. Nf5 {[%emt 0:22:12]} Rxd3 {[%emt 0:02:16]} 26. Ne3 {[%emt 0:04:51]}
Rb5 {[%emt 0:01:59]} 27. Bb4 {[%emt 0:00:56]} Nxb4 {[%emt 0:00:37]} 28. cxb4 {
[%emt 0:00:06]} Rxb4 {[%emt 0:00:07]} 29. h3 {[%emt 0:00:19]} h5 {[%emt 0:00:
00]} 30. hxg4 {[%emt 0:00:29]} hxg4 {[%emt 0:00:06]} 31. Rac1 {[%emt 0:00:20]}
Rxe4 {[%emt 0:02:21]} 32. Rc6 {[%emt 0:00:22]} Kf7 {[%emt 0:02:09]} 33. Rb1 {
[%emt 0:03:10]} Rd7 {[%emt 0:02:09]} 34. a6 {[%emt 0:00:20]} Red4 {[%emt 0:00:
00]} 35. Rb7 {[%emt 0:00:43]} e4 {[%emt 0:00:58]} 36. Rcc7 {[%emt 0:00:24]}
Rxc7 {[%emt 0:00:22]} 37. Rxc7+ {[%emt 0:00:05]} Rd7 {[%emt 0:00:04]} 38. Rb7 {
[%emt 0:01:20]} Rxb7 {[%emt 0:02:36]} 39. axb7 {[%emt 0:00:07]} Be5 {[%emt 0:
00:00]} 40. Kf1 {[%emt 0:02:23]} a5 {[%emt 0:01:27]} 41. Ke1 {[%emt 0:30:18]}
a4 {[%emt 0:30:14]} 42. Kd2 {[%emt 0:01:30]} a3 {[%emt 0:00:19]} 43. Nc2 {
[%emt 0:00:20]} a2 {[%emt 0:00:09]} 44. Ke3 {[%emt 0:00:51]} Bd5 {[%emt 0:00:
00]} 45. b8=Q {[%emt 0:02:11]} Bxb8 {[%emt 0:00:08]} 46. Kd4 {[%emt 0:00:04]}
Ke6 {[%emt 0:00:12]} 47. Kc3 {[%emt 0:01:13]} Be5+ {[%emt 0:00:20]} 48. Kb4 {
[%emt 0:00:28]} a1=Q {[%emt 0:00:19]} 49. Nxa1 {[%emt 0:00:24]} Bxa1 {[%emt 0:
00:00]} 50. Kc5 {[%emt 0:00:09]} Ke5 {[%emt 0:00:06]} 51. Bg2 {[%emt 0:01:03]}
fxg2 {[%emt 0:00:09]} 52. Kb5 {[%emt 0:00:06]} g1=Q {[%emt 0:00:07]} 0-1

[Event "44th Chess Olympiad Open 2022"]
[Site "Chennai"]
[Date "2022.07.29"]
[Round "1.20"]
[White "Sabure, Bojosi"]
[Black "Jianu, Vlad-Cristian"]
[Result "0-1"]
[WhiteElo "1966"]
[BlackElo "2511"]
[Annotator "TA"]
[PlyCount "70"]
[EventDate "2022.??.??"]
[TimeControl "60"]

{[%evp 9,70,-8,0,-8,-15,0,1,-2,0,-1,6,-12,3,0,0,-10,0,-6,13,-2,0,-25,0,0,0,-11,
0,-25,0,-43,-41,-33,0,-66,-34,-74,-64,-125,-116,-112,-90,-123,-112,-120,-122,
-120,-111,-162,-171,-205,-195,-205,-205,-200,-181,-616,-608,-608,-602,-691,
-717,-1129,-1098]} 1. e4 {[%emt 0:00:07]} d6 {[%emt 0:00:08]} 2. g3 {[%emt 0:
00:00]} g6 {[%emt 0:00:35]} 3. Bg2 {[%emt 0:00:23]} Bg7 {[%emt 0:00:13]} 4. Nf3
{[%emt 0:00:52]} Nf6 {[%emt 0:03:33]} 5. c3 {[%emt 0:03:53]} O-O {[%emt 0:00:
00]} 6. Qc2 {[%emt 0:00:08] B07: Pirc Defence: Miscellaneous Systems.} c5 {
[%emt 0:03:08]} 7. O-O {[%emt 0:03:58]} Nc6 {[%emt 0:00:14]} 8. d4 {[%emt 0:00:
00] The position is equal.} cxd4 {[%emt 0:06:57] [#]} 9. Nxd4 $146 {[%emt 0:00:
00]} ({Predecessor:} 9. cxd4 Bg4 10. Be3 Rc8 11. Nc3 b5 12. Qd3 b4 13. Nd5 Bxf3
14. Bxf3 e5 15. Bg5 Nxd4 {1-0 (36) Szieberth,A (2330)-Gyurkovics,M (2260)
Hungary 1995}) 9... Bd7 {[%emt 0:02:00]} 10. Nxc6 {[%emt 0:09:45]} Bxc6 {
[%emt 0:00:06]} 11. Nd2 {[%emt 0:00:12]} Rc8 {[%emt 0:03:09]} 12. Re1 {[%emt 0:
00:00]} Qc7 {[%emt 0:01:56]} 13. Nb3 {[%emt 0:01:23]} b6 {[%emt 0:00:59]} 14.
a4 {[%emt 0:00:59]} Ba8 {[%emt 0:09:57]} 15. h3 {[%emt 0:10:10]} Nd7 {[%emt 0:
00:00]} 16. Be3 {[%emt 0:02:01]} Rb8 {[%emt 0:14:18]} 17. Rac1 {[%emt 0:07:44]}
Rfc8 {[%emt 0:00:00]} 18. Kh2 {[%emt 0:07:34]} a6 {[%emt 0:01:38][%cal Ya7a6,
Ya6b5,Yb5b4]} 19. f4 {[%emt 0:04:03]} b5 {[%emt 0:05:00]} 20. axb5 {[%emt 0:03:
31]} axb5 {[%emt 0:00:05]} 21. f5 {[%emt 0:03:01]} (21. Qf2 $11) 21... Ne5 {
[%emt 0:06:40]} 22. fxg6 {[%emt 0:04:51]} hxg6 {[%emt 0:00:15]} 23. Bd4 {
[%emt 0:00:23]} (23. Nd4 $15) 23... b4 $17 {[%emt 0:07:26]} 24. Qd1 {[%emt 0:
05:10]} Qd7 {[%emt 0:02:12]} 25. Ra1 {[%emt 0:03:07]} Qe6 {[%emt 0:00:00] [#]
Hoping for ...bxc3.} 26. Nc1 {[%emt 0:01:16]} bxc3 {[%emt 0:01:59]} 27. Bxc3 {
[%emt 0:00:34]} Nc4 {[%emt 0:02:19] Black is more active.} 28. Bxg7 {[%emt 0:
01:16]} (28. Nd3 $17) 28... Kxg7 $19 {[%emt 0:00:04]} 29. Qd4+ {[%emt 0:03:02]}
Qe5 {[%emt 0:02:58]} 30. Qxe5+ {[%emt 0:02:58]} Nxe5 {[%emt 0:00:00]} 31. Re2 {
[%emt 0:01:34]} Bc6 {[%emt 0:01:58]} 32. Ra7 $2 {[%emt 0:00:00]} (32. Rd2)
32... Bb5 $1 {[%emt 0:01:44][%csl Yc1,Ye2] Black is clearly winning.} 33. Re1 {
[%emt 0:00:49]} Rc2 {[%emt 0:00:30] White must now prevent . ..Nf3+.} 34. Kh1 {
[%emt 0:00:20]} Rbc8 {[%emt 0:00:46]} 35. Nb3 {[%emt 0:02:00] [#]} Rxg2 $1 {
[%emt 0:01:07] Weighted Error Value: White=0.58/ Black=0.07 (flawless)} 0-1

[Event "44th Chess Olympiad Open 2022"]
[Site "Chennai"]
[Date "2022.07.29"]
[Round "1.21"]
[White "Can, Emre"]
[Black "Garcia Cuestas, Kevin"]
[Result "1-0"]
[WhiteElo "2606"]
[BlackElo "1984"]
[Annotator "TA"]
[PlyCount "41"]
[EventDate "2022.??.??"]
[TimeControl "60"]

{[%evp 12,41,60,68,143,140,141,142,233,228,302,306,325,321,290,285,322,313,284,
263,893,928,914,927,913,914,904,893,878,861,834,797]} 1. e4 {[%emt 0:00:05]} d6
{[%emt 0:00:27]} 2. d4 {[%emt 0:00:29]} Nf6 {[%emt 0:00:12]} 3. Nc3 {[%emt 0:
00:00]} g6 {[%emt 0:00:11]} 4. Bg5 {[%emt 0:01:30]} Bg7 {[%emt 0:02:27]} 5. Qd2
{[%emt 0:00:31]} c6 {[%emt 0:01:46]} 6. Bh6 {[%emt 0:05:48]} O-O {[%emt 0:00:
00]} 7. h4 {[%emt 0:05:25] [#]} Re8 $146 {[%emt 0:07:57] B07: Pirc Defence:
Miscellaneous Systems.} (7... c5 $14 8. Bxg7 Kxg7) ({Predecessor:} 7... Nbd7 8.
h5 b5 9. hxg6 fxg6 10. Bxg7 Kxg7 11. Qh6+ Kg8 12. Nf3 e5 13. O-O-O Qe7 14. Ng5
Nb6 15. dxe5 dxe5 {1-0 (38) Padmini,R (2370)-Skovgaard,P (2327) Chess.com INT
2020}) 8. Bxg7 $16 {[%emt 0:03:51] White is more active.} Kxg7 {[%emt 0:00:09]}
9. h5 $1 {[%emt 0:00:25] [#] hxg6 is the strong threat.} Nxh5 {[%emt 0:11:34]}
(9... e5 $16 {was necessary.}) 10. Be2 $18 {[%emt 0:01:33] aiming for g4.} e5 {
[%emt 0:01:11]} 11. Bxh5 {[%emt 0:01:35]} gxh5 {[%emt 0:00:30]} 12. Rxh5 {
[%emt 0:02:19] Hoping for Qh6+.} Qf6 {[%emt 0:00:28] Prevents Qh6+.} 13. Nge2 {
[%emt 0:01:11]} exd4 {[%emt 0:08:31]} 14. Nxd4 {[%emt 0:00:51]} Re5 {[%emt 0:
00:00]} 15. Rh2 {[%emt 0:03:15]} Bf5 $2 {[%emt 0:04:14] [#]} (15... Qg5 16. g4
Qxd2+ 17. Kxd2 Re8) 16. Nxf5+ {[%emt 0:04:57] White is clearly winning.} Qxf5 {
[%emt 0:08:36]} 17. Qh6+ {[%emt 0:03:53]} Kg8 {[%emt 0:00:54]} 18. Rh3 {
[%emt 0:00:14]} Qg6 {[%emt 0:13:35]} 19. Rg3 {[%emt 0:00:13]} Nd7 {[%emt 0:00:
00]} 20. Rxg6+ {[%emt 0:00:21]} fxg6 {[%emt 0:00:19]} 21. O-O-O {[%emt 0:01:01]
Black got outplayed after the opening. Weighted Error Value: White=0.03 
(flawless) /Black=0.52} 1-0